bitfinex-derivatives/quotes_BTCF0:USTF0_20260113
["timestamp","ask_amount","ask_price","bid_price","bid_amount"]
[1768316629856,0.1853733,92251.0,92224.0,0.010854]
[1768316629857,0.09605846,92251.0,92230.0,0.09768]
[1768316630654,0.09605846,92251.0,92230.0,0.07268]
[1768316630850,0.09605846,92251.0,92220.0,0.010854]
[1768316631059,0.09605846,92248.0,92221.0,0.09768]
[1768316631258,0.010852,92241.0,92221.0,0.09768]
[1768316631853,0.010852,92235.0,92221.0,0.09768]
[1768316632053,0.010853,92232.0,92216.0,0.09768]
[1768316632352,0.010852,92240.0,92218.0,0.010854]
[1768316632552,0.09768,92244.0,92218.0,0.09565271]
[1768316632754,0.00905911,92255.0,92216.0,0.10692559]
[1768316632755,0.00905911,92255.0,92223.0,0.09565271]
[1768316633053,0.09605846,92252.0,92223.0,0.09565271]
[1768316633248,0.09605846,92252.0,92195.0,0.010857]
[1768316633249,0.10511757,92234.0,92203.0,0.09565271]
[1768316633454,0.09768,92233.0,92203.0,0.09565271]
[1768316633650,0.010855,92215.0,92204.0,0.09768]
[1768316633852,0.010854,92218.0,92204.0,0.09768]
[1768316634053,0.010855,92215.0,92204.0,0.09768]
[1768316634251,0.09605846,92226.0,92197.0,0.09768]
[1768316634453,0.010855,92210.0,92197.0,0.09768]
[1768316634655,0.010855,92213.0,92197.0,0.09768]
[1768316635049,0.09768,92222.0,92197.0,0.09768]
[1768316635050,0.010855,92214.0,92197.0,0.09768]
[1768316635362,0.09605846,92242.0,92209.0,0.00924559]
[1768316635545,0.010852,92240.0,92210.0,0.1048983]
[1768316635747,0.09605846,92240.0,92210.0,0.1048983]
[1768316636048,0.000852,92237.0,92223.0,0.09565271]
[1768316636253,0.09768,92248.0,92223.0,0.09565271]
[1768316636557,0.010852,92236.0,92223.0,0.09565271]
[1768316636952,0.010851,92247.0,92223.0,0.09565271]
[1768316637259,0.09768,92248.0,92223.0,0.09565271]
[1768316637859,0.09768,92248.0,92210.0,0.14695921]
[1768316637860,0.09605846,92219.0,92186.0,0.09565271]
[1768316638157,0.14695921,92233.0,92163.0,0.20121659]
[1768316638158,0.09605846,92212.0,92187.0,5.3e-07]
[1768316638360,0.010854,92225.0,92187.0,5.3e-07]
[1768316638361,0.10511757,92209.0,92187.0,5.3e-07]
[1768316638658,0.010858,92188.0,92187.0,5.3e-07]
[1768316638861,0.010858,92188.0,92177.0,0.09768]
[1768316638862,0.09768,92199.0,92177.0,0.09368053]
[1768316639161,0.010858,92189.0,92177.0,0.18933324]
[1768316639361,0.09768,92199.0,92177.0,0.18933324]
[1768316639762,0.00905911,92218.0,92178.0,0.1047194]
[1768316639957,7.822e-05,92210.0,92182.0,0.09565271]
[1768316640152,0.09768,92209.0,92182.0,0.09565271]
[1768316640353,0.010856,92200.0,92182.0,0.09565271]
[1768316640558,0.09768,92209.0,92188.0,0.09565271]
[1768316640559,0.010855,92209.0,92188.0,0.09565271]
[1768316640858,0.010856,92206.0,92179.0,0.09565271]
[1768316641054,0.15781521,92200.0,92167.0,0.09565271]
[1768316641255,0.010859,92175.0,92168.0,0.09768]
[1768316641464,0.01094294,92174.0,92162.0,0.09768]
[1768316641658,0.01376991,92174.0,92162.0,0.09768]
[1768316641857,0.01086,92170.0,92162.0,0.09768]
[1768316642165,0.01376991,92174.0,92162.0,0.09768]
[1768316642166,0.02462891,92174.0,92162.0,0.09768]
[1768316642361,0.01086,92170.0,92162.0,0.09768]
[1768316642552,0.01086,92167.0,92159.0,0.09768]
[1768316642757,0.01086,92171.0,92159.0,0.09768]
[1768316642955,0.01086,92167.0,92153.0,0.00542576]
[1768316643165,0.010859,92177.0,92154.0,0.010862]
[1768316643461,0.010858,92183.0,92160.0,0.1043192]
[1768316643657,0.010858,92183.0,92161.0,0.09768]
[1768316643858,0.09768,92190.0,92162.0,0.010861]
[1768316644063,0.09605846,92195.0,92161.0,0.09768]
[1768316644064,0.09605846,92195.0,92166.0,0.1043192]
[1768316644369,0.108537,92199.0,92170.0,0.09565271]
[1768316644761,0.09768,92202.0,92170.0,0.09565271]
[1768316644964,0.09768,92202.0,92179.0,0.010859]
[1768316645160,0.09013641,92213.0,92178.0,0.09639657]
[1768316645360,0.09768,92215.0,92190.0,0.15781621]
[1768316645562,0.09013641,92222.0,92190.0,0.09639657]
[1768316645563,0.010854,92221.0,92190.0,0.09639657]
[1768316645768,0.09768,92220.0,92190.0,0.09639657]
[1768316646055,0.09013641,92222.0,92190.0,0.10533198]
[1768316646263,0.09768,92221.0,92192.0,0.09639657]
[1768316646460,0.010855,92216.0,92192.0,0.09639657]
[1768316646662,0.09013641,92216.0,92190.0,0.010857]
[1768316646865,0.09013641,92216.0,92189.0,0.09768]
[1768316647167,0.09013641,92205.0,92181.0,0.09768]
[1768316647363,0.09013641,92195.0,92170.0,0.01086]
[1768316647567,0.09013641,92195.0,92173.0,0.010859]
[1768316648068,0.010857,92199.0,92175.0,0.010859]
[1768316648261,0.10099341,92199.0,92175.0,0.010859]
[1768316648455,0.09013641,92218.0,92189.0,0.010858]
[1768316648670,0.09013641,92214.0,92187.0,0.09768]
[1768316648871,0.09993155,92209.0,92184.0,0.09768]
[1768316649066,0.09013641,92203.0,92184.0,0.09768]
[1768316649263,0.09013641,92203.0,92185.0,0.010858]
[1768316649463,0.09013641,92203.0,92184.0,0.108538]
[1768316649658,0.080379,92208.0,92184.0,0.108538]
[1768316649875,0.09768,92208.0,92184.0,0.108538]
[1768316650059,0.09768,92208.0,92190.0,0.010857]
[1768316650262,0.09768,92208.0,92184.0,0.09768]
[1768316650263,0.09768,92208.0,92187.0,0.010858]
[1768316650463,0.010855,92209.0,92184.0,0.108538]
[1768316650668,0.09768,92208.0,92184.0,0.108538]
[1768316650975,0.09768,92208.0,92186.0,0.010858]
[1768316651274,0.09768,92208.0,92184.0,0.09768]
[1768316651670,0.09013641,92206.0,92184.0,0.09768]
[1768316651870,0.09013641,92199.0,92177.0,0.09768]
[1768316652060,0.13016958,92200.0,92178.0,0.129459]
[1768316652262,0.09768,92205.0,92179.0,0.09639657]
[1768316652466,0.09768,92205.0,92182.0,0.10725457]
[1768316652467,0.010856,92203.0,92182.0,0.10725457]
[1768316652673,0.010857,92199.0,92182.0,0.09639657]
[1768316652975,0.010856,92202.0,92182.0,0.10725457]
[1768316653373,0.010856,92205.0,92182.0,0.09639657]
[1768316653573,0.09768,92206.0,92182.0,0.09639657]
[1768316653866,0.010856,92204.0,92184.0,0.010858]
[1768316654064,0.09768,92206.0,92186.0,0.010858]
[1768316654374,0.09768,92206.0,92182.0,0.08725457]
[1768316654572,0.010854,92221.0,92180.0,0.1186]
[1768316654573,0.09768,92209.0,92183.0,0.00999937]
[1768316654878,0.38552,92235.0,92180.0,0.26555921]
[1768316654879,0.09768,92221.0,92191.0,0.00999937]
[1768316655084,0.010854,92218.0,92196.0,0.02085637]
[1768316655273,0.09768,92221.0,92200.0,0.010856]
[1768316655274,0.108534,92221.0,92200.0,0.010856]
[1768316655877,0.010854,92219.0,92197.0,0.129457]
[1768316656173,0.010853,92225.0,92202.0,0.010856]
[1768316656374,0.010852,92241.0,92206.0,0.09399019]
[1768316656375,0.09768,92229.0,92206.0,0.09399019]
[1768316656563,0.010853,92226.0,92207.0,0.09399019]
[1768316656763,0.010853,92228.0,92207.0,0.09399019]
[1768316656972,0.010853,92225.0,92207.0,0.09399019]
[1768316657177,0.010853,92228.0,92208.0,0.09399019]
[1768316657380,0.010853,92226.0,92208.0,0.09399019]
[1768316657580,0.010853,92231.0,92211.0,0.010855]
[1768316657873,0.09363876,92239.0,92208.0,0.09399019]
[1768316658078,0.010851,92246.0,92221.0,0.09399019]
[1768316658374,0.010853,92232.0,92214.0,0.09399019]
[1768316658573,0.010852,92234.0,92216.0,0.09399019]
[1768316658776,0.010852,92238.0,92217.0,0.19167019]
[1768316658970,0.09363876,92249.0,92218.0,0.10484419]
[1768316659281,0.010851,92247.0,92224.0,0.010853]
[1768316659489,0.010851,92242.0,92222.0,0.09399019]
[1768316659868,0.0099195,92238.0,92196.0,0.00902197]
[1768316660072,0.14695921,92230.0,92209.0,0.010855]
[1768316660376,0.010853,92231.0,92209.0,0.010855]
[1768316660582,0.09768,92234.0,92209.0,0.010855]
[1768316660877,0.10821009,92234.0,92211.0,0.10484519]
[1768316661272,0.108531,92242.0,92219.0,0.10484419]
[1768316661468,0.010851,92245.0,92222.0,0.10484419]
[1768316661663,0.010851,92248.0,92227.0,0.010853]
[1768316661874,0.010851,92246.0,92225.0,0.09399019]
[1768316662278,0.010851,92244.0,92225.0,0.07999019]
[1768316662576,0.010849,92265.0,92226.0,0.010853]
[1768316662780,0.010851,92246.0,92226.0,0.10484319]
[1768316663168,0.01085,92254.0,92234.0,0.10484219]
[1768316663582,0.010851,92243.0,92220.0,0.09399019]
[1768316664074,0.010852,92241.0,92220.0,0.09399019]
[1768316664378,0.14695921,92250.0,92220.0,0.09399019]
[1768316664379,0.010852,92240.0,92221.0,0.09768]
[1768316664578,0.010852,92238.0,92221.0,0.09768]
[1768316664771,0.010851,92249.0,92221.0,0.09768]
[1768316664966,0.14695921,92250.0,92222.0,0.09399019]
[1768316665166,0.010851,92245.0,92225.0,0.09399019]
[1768316665366,0.09768,92255.0,92221.0,0.09768]
[1768316665367,0.00271688,92261.0,92229.0,0.09399019]
[1768316665577,0.010851,92245.0,92227.0,0.09399019]
[1768316665777,0.010851,92249.0,92229.0,0.09399019]
[1768316665974,0.09768,92259.0,92231.0,0.09399019]
[1768316666181,0.010852,92241.0,92231.0,0.09399019]
[1768316666783,0.010851,92244.0,92231.0,0.09399019]
[1768316666988,0.10039688,92259.0,92231.0,0.09399019]
[1768316667187,0.010851,92247.0,92231.0,0.09399019]
[1768316667368,0.010851,92245.0,92231.0,0.09399019]
[1768316667573,0.010851,92249.0,92231.0,0.09399019]
[1768316667770,0.010851,92247.0,92231.0,0.09399019]
[1768316667970,0.04595568,92243.0,92206.0,0.09399019]
[1768316668170,0.00276679,92224.0,92196.0,0.09399019]
[1768316668374,0.010855,92210.0,92196.0,0.09399019]
[1768316668583,0.14695921,92220.0,92197.0,0.09399019]
[1768316668880,0.09768,92223.0,92205.0,0.09399019]
[1768316669084,0.010854,92223.0,92205.0,0.09399019]
[1768316669383,0.010854,92221.0,92205.0,0.09399019]
[1768316669781,0.010853,92225.0,92207.0,0.09399019]
[1768316669976,0.010853,92225.0,92206.0,0.010856]
[1768316670171,0.010854,92223.0,92206.0,0.010856]
[1768316670881,0.010854,92221.0,92203.0,0.00902197]
[1768316671183,0.010853,92228.0,92207.0,0.00902197]
[1768316671385,0.14695921,92240.0,92208.0,0.09768]
[1768316671683,0.010854,92224.0,92208.0,0.09768]
[1768316671882,0.09768,92239.0,92209.0,0.09399019]
[1768316672081,0.04569871,92243.0,92217.0,0.09399019]
[1768316672082,0.010853,92231.0,92217.0,0.09399019]
[1768316672282,0.06850618,92252.0,92210.0,0.14695921]
[1768316672283,0.09768,92246.0,92221.0,0.09399019]
[1768316672471,0.010851,92243.0,92221.0,1.9e-07]
[1768316672677,0.010853,92229.0,92217.0,0.09768]
[1768316672877,0.0207705,92244.0,92217.0,0.09768]
[1768316673076,0.010853,92229.0,92217.0,0.09768]
[1768316673272,0.010853,92227.0,92217.0,0.09768]
[1768316673577,0.010852,92239.0,92217.0,0.09768]
[1768316674286,0.010851,92244.0,92217.0,0.09768]
[1768316674502,0.0099195,92270.0,92232.0,0.00902197]
[1768316674787,0.010848,92272.0,92243.0,0.09250335]
[1768316674980,0.010848,92275.0,92253.0,0.01085]
[1768316675177,0.14695921,92300.0,92255.0,0.09250335]
[1768316675178,0.010847,92278.0,92255.0,0.09250335]
[1768316675485,0.0091577,92288.0,92257.0,0.09250335]
[1768316675783,0.0091577,92297.0,92265.0,0.09250335]
[1768316675985,0.0091577,92297.0,92261.0,0.010849]
[1768316675986,0.0091577,92297.0,92267.0,0.09250335]
[1768316676186,0.010846,92288.0,92267.0,0.09250335]
[1768316676381,0.09710719,92301.0,92267.0,0.09250335]
[1768316676382,0.010845,92293.0,92267.0,0.09250335]
[1768316676587,0.0091577,92306.0,92271.0,0.09858007]
[1768316676782,0.010846,92289.0,92271.0,0.09858007]
[1768316676980,0.0091577,92306.0,92271.0,0.09858007]
[1768316677177,0.10626489,92303.0,92271.0,0.09250335]
[1768316677378,0.0091577,92302.0,92271.0,0.09250335]
[1768316677583,0.010846,92289.0,92271.0,0.09250335]
[1768316677773,0.010846,92287.0,92272.0,0.09768]
[1768316677984,0.010846,92288.0,92273.0,0.09250335]
[1768316678189,0.0091577,92301.0,92273.0,0.09250335]
[1768316678382,0.010845,92294.0,92273.0,0.09250335]
[1768316678583,0.010845,92298.0,92273.0,0.09250335]
[1768316678782,0.010845,92301.0,92288.0,0.23946256]
[1768316678985,0.09768,92317.0,92288.0,0.09250335]
[1768316679190,0.09768,92317.0,92288.0,0.08073344]
[1768316679393,0.010845,92300.0,92287.0,0.09768]
[1768316679587,0.0091577,92304.0,92286.0,0.09764]
[1768316679888,0.010846,92289.0,92275.0,0.1186]
[1768316680095,0.010847,92284.0,92272.0,0.09764]
[1768316680291,0.010848,92275.0,92250.0,0.00578288]
[1768316680489,0.10626489,92285.0,92251.0,0.09764]
[1768316680695,0.010848,92273.0,92251.0,0.09764]
[1768316680894,0.10626489,92294.0,92254.0,0.00577595]
[1768316681080,0.010847,92283.0,92257.0,0.09250335]
[1768316681393,0.0091577,92289.0,92257.0,0.09250335]
[1768316681797,0.010846,92289.0,92264.0,0.09250335]
[1768316682095,0.010846,92289.0,92266.0,0.09250335]
[1768316682294,0.010846,92289.0,92267.0,0.09250335]
[1768316682494,0.09710719,92302.0,92271.0,0.09250335]
[1768316682793,0.010846,92293.0,92271.0,0.09250335]
[1768316683590,0.010848,92271.0,92246.0,0.00589008]
[1768316683785,0.010847,92280.0,92250.0,0.00589008]
[1768316683995,0.010847,92280.0,92255.0,0.00589008]
[1768316684195,0.010847,92280.0,92257.0,0.00589008]
[1768316684388,0.0200027,92299.0,92257.0,0.00589008]
[1768316684590,0.010846,92291.0,92265.0,0.0087056]
[1768316684784,0.010846,92285.0,92258.0,0.0195546]
[1768316684989,0.09710719,92301.0,92255.0,0.09764]
[1768316684990,0.010847,92283.0,92261.0,0.0087056]
[1768316685298,0.010847,92280.0,92257.0,0.01085]
[1768316685498,0.010846,92287.0,92255.0,0.09764]
[1768316685693,0.010846,92285.0,92261.0,0.010849]
[1768316685894,0.010846,92288.0,92261.0,0.010849]
[1768316686093,0.09764,92289.0,92259.0,0.09250335]
[1768316686396,0.09764,92292.0,92266.0,0.09250335]
[1768316686596,0.09764,92292.0,92270.0,0.09250335]
[1768316686788,0.010845,92294.0,92270.0,0.09250335]
[1768316687099,0.010846,92292.0,92270.0,0.09250335]
[1768316687291,0.09764,92296.0,92270.0,0.09250335]
[1768316688100,0.010846,92286.0,92270.0,0.09250335]
[1768316688287,0.010846,92289.0,92266.0,0.09764]
[1768316688492,0.010847,92277.0,92258.0,0.09764]
[1768316688692,0.14695921,92280.0,92255.0,0.09764]
[1768316688997,0.09710719,92280.0,92255.0,0.09764]
[1768316689504,0.010848,92274.0,92255.0,0.09764]
[1768316690699,0.09710719,92280.0,92255.0,0.09764]
[1768316691092,0.010848,92274.0,92255.0,0.09764]
[1768316691690,0.09710719,92280.0,92251.0,6e-08]
[1768316691896,0.09710719,92267.0,92241.0,0.09764]
[1768316692098,0.14695921,92270.0,92229.0,0.15646254]
[1768316692099,0.010849,92262.0,92229.0,0.15646254]
[1768316692299,0.0091577,92275.0,92229.0,0.15646254]
[1768316692300,0.010848,92272.0,92240.0,0.14695921]
[1768316692501,0.108488,92271.0,92249.0,0.01085]
[1768316692699,0.09764,92271.0,92251.0,0.01085]
[1768316693204,0.09764,92274.0,92255.0,0.01085]
[1768316693391,0.09764,92274.0,92252.0,0.01085]
[1768316693699,0.09764,92274.0,92257.0,0.01085]
[1768316693899,0.10795419,92280.0,92257.0,0.01085]
[1768316693900,0.09710719,92289.0,92258.0,0.10166406]
[1768316694093,0.010847,92278.0,92258.0,0.10166406]
[1768316694401,0.09764,92285.0,92259.0,0.010849]
[1768316694703,0.09764,92285.0,92260.0,0.00916071]
[1768316694999,0.09764,92291.0,92271.0,0.00916071]
[1768316695401,0.09710719,92296.0,92280.0,0.010847]
[1768316695605,0.010845,92294.0,92271.0,0.00916071]
[1768316695789,0.010846,92292.0,92271.0,0.00916071]
[1768316696305,0.010845,92295.0,92271.0,0.00916071]
[1768316696604,0.010845,92295.0,92273.0,0.010848]
[1768316696793,0.09710719,92296.0,92271.0,0.00916071]
[1768316696989,0.010845,92298.0,92275.0,0.010847]
[1768316697193,0.010845,92298.0,92277.0,0.010847]
[1768316697397,0.010845,92298.0,92276.0,0.00916071]
[1768316697598,0.108485,92301.0,92276.0,0.02000771]
[1768316697803,0.010845,92301.0,92276.0,0.02000771]
[1768316697999,0.010845,92301.0,92275.0,0.09250335]
[1768316698000,0.09764,92300.0,92281.0,0.010847]
[1768316698305,0.09764,92300.0,92280.0,0.00916071]
[1768316698499,0.09764,92300.0,92281.0,0.00916071]
[1768316698695,0.09710719,92305.0,92282.0,0.010847]
[1768316698891,0.10795019,92314.0,92283.0,0.00916071]
[1768316699098,0.09764,92313.0,92291.0,0.00916071]
[1768316699299,0.09764,92314.0,92293.0,0.10166406]
[1768316699601,0.09764,92316.0,92296.0,0.00916071]
[1768316700303,0.09710719,92321.0,92296.0,0.10166406]
[1768316700494,0.09710719,92321.0,92297.0,0.00916071]
[1768316700700,0.0976,92327.0,92306.0,0.010844]
[1768316700907,10.010841,92333.0,92309.0,0.10166406]
[1768316701104,0.09710719,92327.0,92301.0,0.10166406]
[1768316701714,0.09710719,92327.0,92303.0,0.010844]
[1768316701909,0.010842,92326.0,92302.0,0.00916071]
[1768316702311,0.09710719,92327.0,92302.0,0.00916071]
[1768316702506,0.010844,92304.0,92285.0,0.0976]
[1768316702803,0.10626489,92305.0,92272.0,0.09250335]
[1768316703009,0.09710719,92294.0,92269.0,0.0976]
[1768316703195,0.09710719,92308.0,92271.0,0.09250335]
[1768316703403,0.19470719,92307.0,92273.0,0.09250335]
[1768316703603,0.0976,92306.0,92277.0,0.09250335]
[1768316703799,0.09710719,92317.0,92277.0,0.09250335]
[1768316704001,0.09710719,92304.0,92274.0,0.0976]
[1768316704515,0.10795219,92299.0,92274.0,0.0976]
[1768316704713,0.09710719,92299.0,92274.0,0.0976]
[1768316704905,0.09710719,92299.0,92275.0,0.010847]
[1768316705106,0.09710719,92299.0,92278.0,0.010847]
[1768316705413,0.09145584,92313.0,92284.0,0.1516182]
[1768316705606,0.05933405,92323.0,92284.0,0.1516182]
[1768316705607,0.010844,92307.0,92284.0,0.06046769]
[1768316705911,0.010844,92307.0,92276.0,0.010847]
[1768316706101,0.010844,92304.0,92276.0,0.010847]
[1768316706293,0.09145584,92308.0,92275.0,0.09115051]
[1768316706499,0.0976,92313.0,92275.0,0.08876606]
[1768316706697,0.09145584,92313.0,92291.0,0.010846]
[1768316706897,0.09145584,92313.0,92289.0,0.0976]
[1768316707105,0.010844,92310.0,92290.0,0.0976]
[1768316707311,0.09145584,92313.0,92290.0,0.0976]
[1768316708411,0.0976,92317.0,92297.0,0.010845]
[1768316708614,0.0976,92317.0,92294.0,0.06046769]
[1768316708916,0.10229884,92311.0,92290.0,0.0976]
[1768316709111,0.09145584,92311.0,92290.0,0.0976]
[1768316709410,0.0976,92321.0,92290.0,0.0976]
[1768316709411,0.09145584,92329.0,92297.0,0.06046769]
[1768316709608,0.0976,92328.0,92297.0,0.06046769]
[1768316709808,0.09145584,92327.0,92297.0,0.06046769]
[1768316710005,0.010844,92310.0,92297.0,0.06046769]
[1768316710310,0.010844,92305.0,92290.0,0.0976]
[1768316710607,0.09145584,92302.0,92290.0,0.0976]
[1768316711306,0.09145584,92302.0,92282.0,0.0976]
[1768316711514,0.010845,92294.0,92282.0,0.0976]
[1768316712018,0.09145584,92296.0,92273.0,0.0976]
[1768316712414,0.01084,92335.0,92273.0,0.0976]
[1768316712415,0.010844,92305.0,92284.0,0.06046769]
[1768316713006,0.108444,92305.0,92284.0,0.06046769]
[1768316713206,0.0976,92306.0,92284.0,0.06046769]
[1768316713406,0.09145584,92298.0,92273.0,0.0976]
[1768316713614,0.09145584,92298.0,92273.0,0.108448]
[1768316714014,0.09145584,92298.0,92275.0,0.010847]
[1768316714215,0.09145584,92315.0,92274.0,0.06046769]
[1768316714412,0.15078989,92309.0,92277.0,0.010847]
[1768316714712,0.09145584,92299.0,92274.0,0.1186]
[1768316714915,0.09145584,92297.0,92273.0,0.0976]
[1768316715221,0.09145584,92292.0,92273.0,0.0976]
[1768316716216,0.0910535,92283.0,92264.0,0.0976]
[1768316716712,0.1019005,92282.0,92264.0,0.0976]
[1768316716914,0.0910535,92280.0,92264.0,0.0976]
[1768316717115,0.0910535,92280.0,92258.0,0.0976]
[1768316717310,0.010848,92276.0,92258.0,0.0976]
[1768316717521,0.0910535,92277.0,92258.0,0.0976]
[1768316717814,0.0910535,92277.0,92243.0,0.09479558]
[1768316717815,0.0910535,92261.0,92243.0,0.15741006]
[1768316718015,0.010849,92260.0,92243.0,0.15741006]
[1768316718320,0.01085,92257.0,92243.0,0.15741006]
[1768316718506,0.0910535,92257.0,92243.0,0.0976]
[1768316719314,0.0910535,92257.0,92236.0,0.108452]
[1768316720019,0.0910535,92265.0,92245.0,0.010851]
[1768316720203,0.0910535,92265.0,92246.0,0.010851]
[1768316720409,0.0910535,92280.0,92250.0,0.08404872]
[1768316720605,0.0976,92288.0,92259.0,0.08404872]
[1768316720810,0.0910535,92274.0,92256.0,0.0976]
[1768316721004,0.18075262,92274.0,92256.0,0.0976]
[1768316721309,0.010849,92264.0,92248.0,0.0896]
[1768316721613,0.0910535,92264.0,92245.0,0.010851]
[1768316721815,0.0910535,92264.0,92245.0,0.0976]
[1768316722017,0.010849,92263.0,92245.0,0.0976]
[1768316722317,0.0910535,92264.0,92245.0,0.0976]
[1768316723209,0.1019015,92273.0,92251.0,0.01085]
[1768316723409,0.010848,92271.0,92245.0,0.19249972]
[1768316723605,0.0910535,92273.0,92250.0,0.01085]
[1768316723814,0.0910535,92273.0,92249.0,0.010851]
[1768316724010,0.010848,92271.0,92247.0,0.08404872]
[1768316724210,0.010848,92268.0,92247.0,0.08404872]
[1768316724407,0.0910535,92265.0,92245.0,0.0976]
[1768316724606,0.0910535,92264.0,92247.0,0.010851]
[1768316724809,0.1019015,92274.0,92250.0,0.01085]
[1768316725006,0.0976,92273.0,92250.0,0.01085]
[1768316725213,0.08969912,92287.0,92250.0,0.08404872]
[1768316725414,0.010847,92283.0,92261.0,0.010849]
[1768316725614,0.0910535,92286.0,92258.0,0.18164872]
[1768316726018,0.010846,92285.0,92263.0,0.010849]
[1768316727216,0.0910535,92286.0,92261.0,0.08404872]
[1768316727625,0.010846,92291.0,92265.0,0.08404872]
[1768316727815,0.010846,92292.0,92269.0,0.010848]
[1768316728017,0.0910535,92295.0,92272.0,0.010848]
[1768316728018,0.010845,92294.0,92272.0,0.010848]
[1768316728325,0.1018985,92295.0,92272.0,0.08404872]
[1768316728511,0.0910535,92295.0,92272.0,0.08404872]
[1768316728717,0.010845,92301.0,92280.0,0.010847]
[1768316728917,0.0910535,92306.0,92281.0,0.0976]
[1768316729225,0.0976,92311.0,92283.0,0.08404872]
[1768316729429,0.1886535,92311.0,92284.0,0.010845]
[1768316729727,0.010843,92306.0,92284.0,0.010845]
[1768316729915,0.010844,92296.0,92281.0,0.0886]
[1768316730115,0.0976,92311.0,92281.0,0.0886]
[1768316730324,0.010843,92304.0,92285.0,0.010845]
[1768316730522,0.0910535,92310.0,92282.0,0.09489472]
[1768316731113,0.0910535,92310.0,92284.0,0.08404872]
[1768316731324,0.010843,92308.0,92286.0,0.08404872]
[1768316731525,0.0910535,92310.0,92286.0,0.08404872]
[1768316731713,0.010843,92303.0,92282.0,0.010846]
[1768316731919,0.0910535,92310.0,92282.0,0.010846]
[1768316731920,0.010843,92301.0,92282.0,0.010846]
[1768316732221,0.010841,92318.0,92283.0,0.18164872]
[1768316732222,0.0910535,92318.0,92283.0,0.18164872]
[1768316732512,0.0976,92311.0,92284.0,0.08404872]
[1768316732719,0.1886535,92311.0,92284.0,0.08404872]
[1768316732919,0.010841,92319.0,92283.0,0.0976]
[1768316732920,0.0910535,92310.0,92283.0,0.0976]
[1768316733115,0.0910535,92307.0,92283.0,0.0976]
[1768316733314,0.010843,92302.0,92285.0,0.010845]
[1768316733820,0.0910535,92299.0,92285.0,0.010845]
[1768316734016,0.010843,92302.0,92285.0,0.010845]
[1768316734411,0.0910535,92307.0,92285.0,0.010845]
[1768316734622,0.0910535,92307.0,92283.0,0.0976]
[1768316734927,0.010843,92304.0,92285.0,0.010845]
[1768316735122,0.010843,92302.0,92283.0,0.0976]
[1768316735423,0.010842,92311.0,92284.0,0.19727918]
[1768316735728,0.09091676,92316.0,92290.0,0.11014781]
[1768316735927,0.09091676,92316.0,92291.0,0.09930281]
[1768316736123,0.010841,92323.0,92299.0,0.09930281]
[1768316736425,0.09091676,92324.0,92301.0,0.09930281]
[1768316736625,0.09091676,92324.0,92300.0,0.0976]
[1768316736828,0.010842,92316.0,92300.0,0.0936]
[1768316737023,0.09091676,92319.0,92298.0,0.0976]
[1768316737216,0.010841,92320.0,92290.0,0.11014781]
[1768316737217,0.010842,92309.0,92290.0,0.11014781]
[1768316737419,0.0976,92319.0,92293.0,0.09930281]
[1768316737624,0.010843,92306.0,92293.0,0.09930281]
[1768316737818,0.09091676,92318.0,92293.0,0.09930281]
[1768316738014,0.0023829,92325.0,92303.0,0.09797637]
[1768316738218,0.0023829,92325.0,92307.0,0.010843]
[1768316738419,0.09091676,92336.0,92307.0,0.09930281]
[1768316738624,0.09091676,92319.0,92291.0,0.09930281]
[1768316738920,0.010841,92318.0,92294.0,0.010844]
[1768316739423,0.010841,92325.0,92301.0,0.09930281]
[1768316739631,0.010841,92318.0,92295.0,0.09930281]
[1768316739829,0.09091676,92321.0,92296.0,0.010844]
[1768316740231,0.09091676,92318.0,92292.0,0.0976]
[1768316740430,0.010842,92311.0,92292.0,0.0976]
[1768316740630,0.10175876,92311.0,92292.0,0.0976]
[1768316741023,0.010841,92318.0,92293.0,0.010844]
[1768316741225,0.09091676,92320.0,92297.0,0.010844]
[1768316741419,0.010841,92322.0,92296.0,0.19727918]
[1768316741624,0.010841,92321.0,92299.0,0.19727918]
[1768316741828,0.010841,92324.0,92300.0,0.11014581]
[1768316742047,0.09091676,92328.0,92301.0,0.09797637]
[1768316742224,0.01084,92330.0,92307.0,0.010843]
[1768316742529,0.09091676,92336.0,92309.0,0.20812118]
[1768316742736,0.01084,92332.0,92313.0,0.09930281]
[1768316743724,0.01084,92334.0,92313.0,0.11014481]
[1768316743918,0.01084,92332.0,92314.0,0.09930281]
[1768316744732,8.7056211,92333.0,92330.0,0.01084]
[1768316744931,8.7056211,92333.0,92310.0,0.0976]
[1768316744932,4.54833318,92333.0,92332.0,0.01084]
[1768316745134,0.84198525,92333.0,92332.0,0.0976]
[1768316745436,0.00238213,92355.0,92332.0,0.0976]
[1768316745727,0.00238213,92355.0,92334.0,0.010839]
[1768316745930,0.00238213,92355.0,92332.0,0.0976]
[1768316746130,0.09091676,92381.0,92335.0,0.10829132]
[1768316746330,0.010835,92369.0,92336.0,0.010839]
[1768316746536,0.09091676,92371.0,92340.0,0.01164038]
[1768316746735,0.09091676,92371.0,92340.0,0.00200345]
[1768316746937,0.09091676,92367.0,92341.0,0.0976]
[1768316747333,0.09091676,92365.0,92341.0,0.0976]
[1768316747730,0.09091676,92365.0,92343.0,0.010838]
[1768316748038,0.09091676,92365.0,92342.0,0.010839]
[1768316748429,0.09091676,92365.0,92341.0,0.0976]
[1768316748630,0.00541284,92373.0,92352.0,0.010837]
[1768316748930,0.00541284,92373.0,92353.0,0.09756]
[1768316749239,0.00541284,92373.0,92354.0,0.09756]
[1768316749635,8.4e-07,92373.0,92367.0,0.010836]
[1768316749834,0.09091676,92400.0,92368.0,0.09756]
[1768316750139,0.09091676,92400.0,92352.0,0.010837]
[1768316750140,0.010832,92399.0,92369.0,0.09756]
[1768316750330,0.010832,92399.0,92370.0,0.09756]
[1768316750834,0.00779309,92393.0,92370.0,0.09214599]
[1768316751738,0.00541167,92393.0,92370.0,0.09214599]
[1768316751938,0.00541167,92393.0,92373.0,0.010835]
[1768316752135,6.7e-07,92393.0,92371.0,0.10824678]
[1768316752337,6.7e-07,92393.0,92388.0,0.010833]
[1768316752644,6.7e-07,92393.0,92389.0,0.09756]
[1768316752842,6.7e-07,92393.0,92370.0,0.05879256]
[1768316752843,6.7e-07,92393.0,92390.0,0.08756]
[1768316753030,6.7e-07,92393.0,92391.0,0.09756]